bitfinex-derivatives/quotes_ETHF0:USTF0_20250501
["timestamp","ask_amount","ask_price","bid_price","bid_amount"]
[1746116702464,2.72197,1860.2,1860.1,4.66083]
[1746116702664,2.72197,1860.2,1860.1,7.86863]
[1746116702864,2.72197,1860.2,1860.1,9.44263]
[1746116703163,1.07476,1860.3,1860.2,1.07473]
[1746116703471,1.07476,1860.3,1860.2,2.64873]
[1746116703971,1.07476,1860.3,1860.2,1.574]
[1746116704370,2.72196,1860.3,1860.2,1.574]
[1746116705072,1.07477,1860.2,1860.1,7.86863]
[1746116705270,1.07477,1860.2,1860.1,9.44703]
[1746116706777,2.79147,1860.2,1860.1,9.44703]
[1746116710376,1.0747,1860.4,1860.3,1.07466]
[1746116710880,1.0746,1860.5,1860.4,1.0746]
[1746116712075,2.74668,1860.6,1860.5,1.0746]
[1746116712382,4.64205231,1860.8,1860.7,1.07448]
[1746116712582,4.64205231,1860.8,1860.7,4.65748]
[1746116712781,5.34640379,1860.8,1860.7,4.65748]
[1746116712984,6.42083379,1860.8,1860.7,6.74018]
[1746116713785,5.34640379,1860.8,1860.7,6.74018]
[1746116713976,6.42083379,1860.8,1860.7,6.74018]
[1746116714375,5.34640379,1860.8,1860.7,6.74018]
[1746116714777,6.42083379,1860.8,1860.7,6.74018]
[1746116715485,5.34640379,1860.8,1860.7,6.74018]
[1746116716483,6.42083379,1860.8,1860.7,6.74018]
[1746116716673,5.34640379,1860.8,1860.7,6.74018]
[1746116717481,1.07441,1860.9,1860.8,1.07443]
[1746116717780,1.07441,1860.9,1860.8,4.28223]
[1746116718688,2.68563,1861.0,1860.9,1.07437]
[1746116719882,1.07437,1860.9,1860.8,4.28218]
[1746116720086,2.69637,1860.9,1860.8,3.2078]
[1746116720275,1.622,1860.9,1860.8,4.28223]
[1746116720481,1.07424,1861.2,1861.1,1.07425]
[1746116720783,1.07424,1861.2,1861.1,4.28205]
[1746116720980,2.72798,1861.3,1861.2,1.07419]
[1746116721177,2.72794,1861.3,1861.2,1.07419]
[1746116722688,1.07419,1861.2,1861.1,3.2078]
[1746116722979,2.72799,1861.2,1861.1,3.2078]
[1746116723187,2.72799,1861.2,1861.1,4.28205]
[1746116723788,2.06512,1861.4,1861.1,3.2078]
[1746116723990,3.64622,1861.4,1861.3,1.07414]
[1746116724291,2.5721,1861.4,1861.1,3.2078]
[1746116724486,3.64622,1861.4,1861.3,1.07414]
[1746116724791,1.5811,1861.4,1861.3,4.28194]
[1746116726792,1.5811,1861.4,1861.3,7.86394]
[1746116728084,6.77058555,1862.1,1861.8,1.07385]
[1746116728392,8.84478553,1862.6,1862.3,1.07356]
[1746116728593,10.46048553,1862.6,1862.3,7.86236]
[1746116728889,10.46048553,1862.6,1862.3,12.86236]
[1746116729292,8.84478553,1862.6,1862.3,13.74686]
[1746116729588,8.84478553,1862.6,1862.3,8.74686]
[1746116729983,3.55437322,1862.4,1862.3,13.74686]
[1746116730375,1.07904322,1862.4,1862.3,13.74686]
[1746116730594,3.22e-06,1862.4,1862.3,13.74686]
[1746116731291,7.08970283,1862.7,1862.6,1.07339]
[1746116731483,5.99544283,1862.7,1862.6,7.86119]
[1746116731686,5.99544283,1862.7,1862.6,13.86119]
[1746116732587,5.99544283,1862.7,1862.6,10.28119]
[1746116732891,5.99544283,1862.7,1862.6,8.86119]
[1746116733486,5.99544283,1862.7,1862.6,5.28119]
[1746116733790,5.99544283,1862.7,1862.6,8.86019]
[1746116734083,5.99544283,1862.7,1862.6,7.86019]
[1746116734783,5.99544283,1862.7,1862.6,4.28119]
[1746116734985,1.6406,1862.7,1862.6,7.86019]
[1746116735492,1.07325,1862.9,1862.8,1.07327]
[1746116735684,1.07325,1862.9,1862.8,4.28107]
[1746116735998,1.07318,1863.0,1862.9,1.07316]
[1746116736196,1.07318,1863.0,1862.9,3.579]
[1746116736694,0.8614,1863.1,1863.0,1.07316]
[1746116736695,1.93454,1863.1,1863.0,1.07316]
[1746116737185,1.07316,1863.0,1862.9,4.65218]
[1746116737386,2.69256,1863.0,1862.9,3.579]
[1746116737587,2.69256,1863.0,1862.9,4.65221]
[1746116738286,1.6194,1863.0,1862.9,4.65221]
[1746116738790,1.6194,1863.0,1862.9,6.29091]
[1746116738988,1.6194,1863.0,1862.9,6.69927781]
[1746116739186,2.73851,1863.3,1863.2,1.07304]
[1746116739386,2.73851,1863.3,1863.2,6.7858]
[1746116740595,7.73851,1863.3,1863.2,3.2078]
[1746116740894,7.73851,1863.3,1863.2,6.7858]
[1746116741091,1.6655,1863.3,1863.2,7.85884]
[1746116741487,1.94744,1863.6,1863.5,1.07287]
[1746116741691,1.94744,1863.6,1863.5,7.85867]
[1746116742185,2.5743,1863.8,1863.5,3.2078]
[1746116742385,1.07281,1863.6,1863.5,3.2078]
[1746116742692,1.07281,1863.6,1863.5,3.578]
[1746116743900,1.07293,1863.4,1863.3,3.2078]
[1746116744297,1.07293,1863.4,1863.3,6.7848]
[1746116744493,2.76393,1863.4,1863.3,6.7848]
[1746116745494,3.63053,1863.4,1863.3,6.7848]
[1746116745992,8.63053,1863.4,1863.3,3.577]
[1746116746199,7.5576,1863.4,1862.9,3.2078]
[1746116746390,1.07316,1863.0,1862.9,6.7848]
[1746116747192,1.93976,1863.0,1862.9,6.7848]
[1746116748495,3.55086,1863.0,1862.9,6.7848]
[1746116748801,1.07321,1862.9,1862.8,53.772]
[1746116748994,1.07327,1862.8,1862.7,6.7848]
[1746116752199,1.07327,1862.8,1862.7,7.85813]
[1746116752596,1.07327,1862.8,1862.7,6.7848]
[1746116753301,1.07327,1862.8,1862.7,3.577]
[1746116753498,1.07327,1862.8,1862.7,6.7848]
[1746116753890,1.07327,1862.8,1862.7,3.577]
[1746116755904,1.07327,1862.8,1862.5,3.2078]
[1746116755905,1.07339,1862.6,1862.5,6.7848]
[1746116756106,1.07339,1862.6,1862.5,3.577]
[1746116756600,3.62239,1862.6,1862.5,3.577]
[1746116756805,1.0735,1862.4,1862.3,3.2078]
[1746116757005,2.68389,1862.4,1862.0,50.182]
[1746116757215,1.07368,1862.1,1862.0,53.759]
[1746116758102,2.78948,1862.1,1862.0,53.759]
[1746116758503,2.78948,1862.1,1862.0,3.577]
[1746116760301,2.78948,1862.1,1862.0,4.65073]
[1746116760607,2.78948,1862.1,1862.0,6.29243]
[1746116760798,1.07363,1862.2,1862.1,1.07368]
[1746116761006,1.07363,1862.2,1862.1,5.92318]
[1746116761202,1.07363,1862.2,1862.1,3.2078]
[1746116761504,1.07373,1862.0,1861.9,5.13209]
[1746116761698,1.07373,1862.0,1861.9,8.74809]
[1746116762199,2.77903,1862.0,1861.9,10.38979]
[1746116762899,1.93991,1862.1,1862.0,1.07373]
[1746116763103,1.07371,1862.1,1862.0,2.67753]
[1746116764106,1.07373,1862.0,1861.9,7.89758]
[1746116764406,2.69063,1862.0,1861.9,7.89759]
[1746116764607,1.07373,1862.0,1861.9,9.50139]
[1746116764809,1.07371,1862.1,1862.0,1.07365]
[1746116765107,1.07371,1862.1,1862.0,4.29095]
[1746116765308,1.07346,1862.6,1862.5,1.07344]
[1746116765806,1.0735,1862.5,1862.4,1.6038]
[1746116765996,1.0735,1862.4,1862.3,6.8238]
[1746116766200,1.0735,1862.4,1862.3,7.89736]
[1746116766900,2.72479,1862.5,1862.4,1.0735]
[1746116767199,1.07349,1862.5,1862.4,3.25]
[1746116767401,1.07349,1862.5,1862.4,4.3235]
[1746116767909,1.07349,1862.5,1862.4,0.8676]
[1746116769208,1.07349,1862.5,1862.4,1.9411]
[1746116769911,1.07349,1862.5,1862.4,3.5285]
[1746116770300,2.72473,1862.6,1862.5,1.07344]
[1746116770496,2.72473,1862.6,1862.5,5.86864]
[1746116770707,1.07343,1862.6,1862.5,5.86864]
[1746116771009,1.07334,1862.7,1862.6,1.07339]
[1746116771303,1.07334,1862.7,1862.6,3.53179]
[1746116772106,1.0732,1863.0,1862.9,1.07317]
[1746116772315,1.0732,1863.0,1862.9,4.68917]
[1746116772709,1.0732,1863.0,1862.9,6.36107]
[1746116773113,1.07304,1863.3,1863.2,1.07302]
[1746116773309,1.07307,1863.2,1863.1,4.28086]
[1746116773607,1.07307,1863.2,1863.1,9.56876]
[1746116773810,1.07295,1863.4,1863.3,1.07296]
[1746116774111,2.68218,1863.5,1863.1,3.2078]
[1746116774413,1.07316,1863.0,1862.9,6.8238]
[1746116774612,1.07316,1863.0,1862.9,7.89701]
[1746116774814,1.07316,1863.0,1862.9,9.56891]
[1746116775710,2.68238,1863.4,1862.9,8.4957]
[1746116775911,1.0731,1863.1,1863.0,2.5714]
[1746116776117,1.0731,1863.1,1863.0,1.6941]
[1746116776608,1.0731,1863.1,1863.0,2.76726]
[1746116776808,2.7489,1863.1,1863.0,1.6941]
[1746116777512,1.073,1863.3,1863.2,1.073]
[1746116777711,2.7488,1863.3,1863.2,4.2808]
[1746116777915,2.7488,1863.3,1863.2,7.8968]
[1746116779514,2.7488,1863.3,1863.2,6.8238]
[1746116779915,2.7488,1863.3,1863.2,9.3399]
[1746116780113,1.073,1863.3,1863.2,9.3399]
[1746116781419,1.073,1863.3,1863.2,7.6214]
[1746116781621,1.073,1863.3,1863.2,6.8238]
[1746116781817,1.073,1863.3,1863.2,3.616]
[1746116782720,1.0731,1863.1,1863.0,3.2078]
[1746116783014,1.0731,1863.1,1863.0,6.8228]
[1746116783518,2.7598,1863.1,1863.0,6.8228]
[1746116786221,2.7598,1863.1,1863.0,3.615]
[1746116786420,1.07321,1862.9,1862.8,4.0054]
[1746116786618,1.07321,1862.9,1862.8,4.4126]
[1746116787615,2.74779,1863.0,1862.9,1.07321]
[1746116787811,1.07314,1863.1,1863.0,1.07311]
[1746116788018,3.56908,1863.2,1863.1,1.0731]
[1746116788223,1.07308,1863.2,1863.1,2.747]
[1746116788724,1.07308,1863.2,1863.1,1.6739]
[1746116789525,1.07295,1863.4,1863.3,1.07291]
[1746116789720,1.07295,1863.4,1863.3,7.89571]
[1746116789926,1.07295,1863.4,1863.3,6.8228]
[1746116790325,1.07295,1863.4,1863.3,7.89578]
[1746116790825,1.07295,1863.4,1863.3,7.88682595]
[1746116791119,1.07295,1863.4,1863.3,8.42374595]
[1746116791324,1.07295,1863.4,1863.3,6.81384595]
[1746116791525,1.86765,1863.4,1863.3,6.81384595]
[1746116792423,1.86765,1863.4,1863.3,7.88682595]
[1746116792925,1.86765,1863.4,1863.3,6.81384595]
[1746116795121,1.86765,1863.4,1863.3,7.88682595]
[1746116795430,1.07295,1863.4,1863.3,7.88682595]
[1746116795726,1.07295,1863.4,1863.3,9.60392595]
[1746116796128,1.07295,1863.4,1863.3,8.53094595]
[1746116796528,1.07295,1863.4,1863.3,6.81384595]
[1746116796729,1.07295,1863.4,1863.3,7.88682595]
[1746116797533,1.07295,1863.4,1863.3,6.81384595]
[1746116798442,1.07295,1863.4,1863.3,7.88682595]
[1746116798741,1.07295,1863.4,1863.3,10.37152595]
[1746116798941,1.07295,1863.4,1863.3,9.29854595]
[1746116799147,1.07295,1863.4,1863.3,10.37152595]
[1746116799440,1.07295,1863.4,1863.3,8.49754595]
[1746116799638,1.07295,1863.4,1863.3,6.81384595]
[1746116800537,1.07295,1863.4,1863.3,3.60604595]
[1746116801243,1.07304,1863.2,1863.1,4.28089]
[1746116801838,1.07304,1863.2,1863.1,6.01079]
[1746116803042,2.69933,1863.3,1863.2,1.07304]
[1746116803236,2.69933,1863.3,1863.2,3.54804]
[1746116803543,1.07303,1863.3,1863.2,3.54804]
[1746116805538,1.07303,1863.3,1863.2,2.475]
[1746116805741,1.07303,1863.3,1863.2,0.7835]
[1746116805942,1.07304,1863.2,1863.1,3.2078]
[1746116806541,1.86594,1863.2,1863.1,3.2078]
[1746116809348,1.07304,1863.2,1863.1,5.9328]
[1746116809646,1.07304,1863.2,1863.1,6.728]
[1746116810034,1.6788,1863.3,1863.1,5.6549]
[1746116810240,1.07288,1863.5,1863.4,1.07293]
[1746116810444,1.07288,1863.5,1863.4,7.90073]
[1746116811045,1.07288,1863.5,1863.4,9.55263]
[1746116811243,1.6618,1863.6,1863.4,3.2078]
[1746116811438,1.07287,1863.5,1863.4,3.2078]
[1746116811846,2.69747,1863.5,1863.4,3.2078]
[1746116812647,1.07293,1863.4,1863.3,6.34488]
[1746116812847,2.69753,1863.4,1863.3,5.2719]
[1746116813045,2.69753,1863.4,1863.3,3.62]
[1746116814936,2.69753,1863.4,1863.3,4.69298]
[1746116815343,2.69753,1863.4,1863.3,6.27198]
[1746116815643,2.69753,1863.4,1863.3,5.199]
[1746116816251,2.69753,1863.4,1863.3,3.62]
[1746116816543,1.07298,1863.3,1863.2,7.6231]
[1746116816743,2.71228,1863.3,1863.2,9.33067198]
[1746116816940,2.71228,1863.3,1863.2,10.90967198]
[1746116818152,1.07298,1863.3,1863.2,10.90967198]
[1746116818945,1.6691,1863.4,1863.2,10.90967198]
[1746116819250,2.74205,1863.4,1863.3,3.33491198]
[1746116819957,1.07291,1863.5,1863.4,1.07293]
[1746116820143,1.07291,1863.5,1863.4,5.90813]
[1746116820451,1.07291,1863.5,1863.4,11.84013]
[1746116820651,2.74201,1863.5,1863.4,12.47466198]
[1746116821756,2.74201,1863.5,1863.4,11.40173198]
[1746116822154,0.8555,1863.7,1863.4,11.40173198]
[1746116822453,1.07275,1863.7,1863.6,4.28056]
[1746116822853,1.07275,1863.7,1863.6,5.88776]
[1746116823153,1.07275,1863.7,1863.6,6.52229198]
[1746116824148,5.35097529,1863.9,1863.8,1.0727]
[1746116824348,6.42361529,1863.9,1863.8,7.8835]
[1746116824752,8.07501529,1863.9,1863.8,10.20463198]
[1746116824948,8.07501529,1863.9,1863.8,11.00873198]
[1746116825857,5.35097529,1863.9,1863.8,11.00873198]
[1746116826352,1.07262,1864.0,1863.9,1.07264]
[1746116826551,1.07262,1864.0,1863.9,3.39377198]
[1746116826953,6.42348529,1864.2,1864.1,1.07252]
[1746116827254,7.03847529,1864.2,1864.1,7.88332]
[1746116827459,8.11094529,1864.2,1864.1,8.51785198]
[1746116827652,8.11094529,1864.2,1864.1,9.32195198]
[1746116827852,8.11094529,1864.2,1864.1,6.11415198]
[1746116828049,8.11094529,1864.2,1864.1,4.23753198]
[1746116828253,1.07258,1864.0,1863.9,9.1398]
[1746116828451,1.07258,1864.0,1863.9,9.77154868]
[1746116828757,1.07258,1864.0,1863.9,10.84418868]
[1746116829057,2.76008,1864.0,1863.9,10.84418868]
[1746116829356,2.76008,1864.0,1863.9,9.77154868]
[1746116829557,2.76008,1864.0,1863.9,10.84419457]
[1746116829856,7.76008,1864.0,1863.9,0.63175457]
[1746116830160,2.6816,1863.9,1863.4,10.77675255]
[1746116830357,1.07287,1863.5,1863.4,11.84965255]
[1746116830557,1.07287,1863.5,1863.4,19.48408778]
[1746116830755,1.07286,1863.6,1863.5,1.07284]
[1746116830955,1.07286,1863.6,1863.5,4.28064]
[1746116831156,2.70506,1863.6,1863.5,3.2078]
[1746116831455,2.70506,1863.6,1863.5,3.82093593]
[1746116832259,2.70506,1863.6,1863.5,0.61313593]
[1746116832561,2.70506,1863.6,1863.5,3.82093593]
[1746116833763,2.70506,1863.6,1863.5,0.61313593]
[1746116834859,2.70506,1863.6,1863.5,3.82093593]
[1746116835656,2.70506,1863.6,1863.5,4.89380593]
[1746116836367,2.70506,1863.6,1863.5,6.49910593]
[1746116836660,2.70506,1863.6,1863.5,8.10390593]
[1746116838059,2.70506,1863.6,1863.5,7.03103593]
[1746116839063,2.70506,1863.6,1863.5,4.63653593]
[1746116840261,2.70506,1863.6,1863.5,5.70940593]
[1746116840564,2.70506,1863.6,1863.5,4.63653593]
[1746116841564,2.70506,1863.6,1863.5,3.82093593]
[1746116841862,7.70506,1863.6,1863.5,0.61313593]
[1746116842162,1.07293,1863.4,1863.3,10.21278]
[1746116842460,1.07293,1863.4,1863.3,10.82689127]
[1746116842660,1.07293,1863.4,1863.3,9.75391127]
[1746116842962,3.47463,1863.4,1863.3,9.75391127]
[1746116843659,3.47463,1863.4,1863.3,0.61411127]
[1746116843966,1.07298,1863.3,1863.2,3.603]
[1746116844263,1.07304,1863.2,1863.1,7.15285691]
[1746116848362,1.07321,1862.9,1862.8,12.7428]
[1746116848570,1.07333,1862.7,1862.6,10.36065691]
[1746116849261,2.67613,1862.7,1862.6,11.43404691]
[1746116849468,2.67613,1862.7,1862.6,14.68034691]
[1746116849769,2.67613,1862.7,1862.6,18.28334691]
[1746116851668,1.07332,1862.8,1862.7,1.07333]
[1746116851870,3.51837,1862.9,1862.8,1.07327]
[1746116852169,3.51837,1862.9,1862.8,4.28107]
[1746116852463,2.73177,1862.9,1862.8,3.2078]
[1746116852766,2.73177,1862.9,1862.8,4.28107]
[1746116852767,1.07327,1862.9,1862.8,4.28107]
[1746116853167,1.07327,1862.9,1862.8,5.94907]
[1746116853470,1.07318,1863.0,1862.9,1.07321]
[1746116853771,1.07318,1863.0,1862.9,3.53411]
[1746116853968,1.07318,1863.0,1862.9,6.0549]
[1746116854163,2.73168,1863.0,1862.9,7.12811]
[1746116854669,1.07318,1863.0,1862.9,7.12811]
[1746116856269,1.07312,1863.1,1863.0,1.07316]
[1746116856565,1.07312,1863.1,1863.0,6.76366]
[1746116856768,1.07307,1863.2,1863.1,1.07304]
[1746116858369,2.69681,1863.3,1863.2,1.07304]
[1746116858571,2.69681,1863.3,1863.2,7.87484]
[1746116858764,2.69681,1863.3,1863.2,6.8018]
[1746116859070,2.69681,1863.3,1863.2,8.69284]
[1746116859769,2.69681,1863.3,1863.2,7.6198]
[1746116859963,2.69681,1863.3,1863.2,6.8018]
[1746116861171,7.69681,1863.3,1863.2,3.2078]
[1746116861364,1.07304,1863.2,1863.1,5.932]
[1746116861667,3.59154,1863.2,1863.1,5.932]
[1746116863068,3.59154,1863.2,1863.1,9.1398]
[1746116863269,3.59154,1863.2,1863.1,5.932]
[1746116864070,3.59154,1863.2,1863.1,9.1398]
[1746116864273,3.59154,1863.2,1863.1,3.2078]
[1746116864471,1.07316,1863.0,1862.9,5.48517]
[1746116864672,1.07316,1863.0,1862.9,8.69297]
[1746116865579,1.07312,1863.1,1863.0,1.0731]
[1746116865877,1.07316,1863.0,1862.9,8.69297]
[1746116866376,1.07316,1863.0,1862.9,7.6198]
[1746116866777,1.07316,1863.0,1862.9,4.0258]
[1746116866976,1.07316,1863.0,1862.9,7.6198]
[1746116867477,1.07316,1863.0,1862.9,8.69301]
[1746116867674,1.07316,1863.0,1862.9,5.09901]
[1746116868074,1.07316,1863.0,1862.9,8.69301]
[1746116868275,1.07316,1863.0,1862.9,5.09901]
[1746116868476,1.07316,1863.0,1862.9,8.69301]
[1746116868677,1.07316,1863.0,1862.9,10.42141]
[1746116868883,1.07316,1863.0,1862.9,9.3482]
[1746116869275,1.07316,1863.0,1862.9,10.42141]
[1746116870179,1.07316,1863.0,1862.9,6.82741]
[1746116870383,1.07316,1863.0,1862.9,5.7542]
[1746116870679,1.07316,1863.0,1862.9,6.82741]
[1746116870984,1.07316,1863.0,1862.9,5.7542]
[1746116871378,1.07316,1863.0,1862.9,6.82741]
[1746116871573,1.07316,1863.0,1862.9,5.7542]
[1746116871883,1.07316,1863.0,1862.9,4.0258]
[1746116872083,1.07316,1863.0,1862.9,3.2078]
[1746116872383,1.07316,1863.0,1862.9,6.72961]
[1746116876785,2.67326,1863.0,1862.9,6.72961]
[1746116876987,2.67326,1863.0,1862.9,5.6564]
[1746116877283,2.67326,1863.0,1862.9,3.2078]
[1746116879288,2.67326,1863.0,1862.9,4.28101]
[1746116879883,2.67326,1863.0,1862.9,5.90611]
[1746116882386,2.67326,1863.0,1862.9,3.2078]
[1746116889894,5.36628,1862.9,1862.7,3.2078]
[1746116890088,1.07327,1862.8,1862.7,3.2078]
[1746116890394,1.07327,1862.8,1862.7,4.28113]
[1746116890395,3.61497,1862.8,1862.7,4.28113]
[1746116890586,2.77337,1862.8,1862.7,4.28113]
[1746116890787,2.77337,1862.8,1862.7,5.92933]
[1746116890987,1.07326,1862.9,1862.8,1.07327]
[1746116891286,1.07326,1862.9,1862.8,3.55897]
[1746116892698,1.07326,1862.9,1862.8,2.4857]
[1746116892893,2.69666,1862.9,1862.8,3.55897]
[1746116893382,2.69666,1862.9,1862.8,2.4857]
[1746116893587,2.69666,1862.9,1862.8,3.55897]
[1746116893796,2.69666,1862.9,1862.8,2.4857]
[1746116894095,2.69666,1862.9,1862.8,3.55897]
[1746116894598,1.07315,1863.1,1863.0,1.07316]
[1746116894797,1.07315,1863.1,1863.0,4.28096]
[1746116895097,1.07315,1863.1,1863.0,3.2078]
[1746116895295,2.64535,1863.1,1863.0,3.2078]
[1746116895489,2.64535,1863.1,1863.0,4.7752]
[1746116895689,3.46865,1863.1,1863.0,3.2078]
[1746116895987,1.07316,1863.0,1862.9,3.582]
[1746116896288,2.64536,1863.0,1862.9,3.582]
[1746116896598,1.07321,1862.9,1862.8,4.0453]
[1746116896792,3.56791,1862.9,1862.8,4.0453]
[1746116898798,3.56791,1862.9,1862.8,3.2078]
[1746116898999,1.0732,1863.0,1862.9,1.07321]
[1746116899400,1.07314,1863.1,1863.0,1.07312]
[1746116899595,1.07314,1863.1,1863.0,6.84212]
[1746116900790,1.6919,1863.2,1863.0,6.84212]
[1746116900995,2.76499,1863.2,1863.1,2.7217]
[1746116901800,1.07309,1863.2,1863.1,2.7217]
[1746116902101,4.64513635,1863.3,1863.2,1.07304]
[1746116902295,3.57210635,1863.3,1863.2,6.76794]
[1746116902600,3.57210635,1863.3,1863.2,10.34994]
[1746116904004,1.07297,1863.4,1863.3,1.07298]
[1746116904195,1.07297,1863.4,1863.3,2.72388]
[1746116904903,1.07298,1863.3,1863.2,5.1193]
[1746116905101,1.07298,1863.3,1863.2,7.6273]
[1746116905499,1.89788,1863.3,1863.2,7.6273]
[1746116905701,3.56398,1863.3,1863.2,10.35124]
[1746116906603,3.56398,1863.3,1863.2,9.2782]
[1746116906800,3.56398,1863.3,1863.2,6.7888]
[1746116908005,3.56398,1863.3,1863.2,3.2078]
[1746116909002,1.0731,1863.1,1863.0,7.15285691]
[1746116909395,2.77738,1863.2,1863.0,7.15285691]
[1746116909700,2.77738,1863.2,1863.1,5.9188]
[1746116909901,2.77738,1863.2,1863.1,6.7502]
[1746116912200,2.77738,1863.2,1863.1,5.6771]
[1746116913805,2.77738,1863.2,1863.1,3.2078]
[1746116915207,1.07316,1863.0,1862.9,7.15285691]
[1746116915505,1.07321,1862.9,1862.8,2.02652228]
[1746116915807,1.07333,1862.7,1862.6,29.0305921]
[1746116916109,1.07339,1862.6,1862.5,29.0305921]
[1746116916296,2.67039,1862.6,1862.5,29.0305921]
[1746116916501,10.87819,1862.6,1862.5,29.0305921]
[1746116916911,5.87819,1862.6,1862.5,29.0305921]
[1746116917207,10.87819,1862.6,1862.5,27.7966821]
[1746116917408,3.09931985,1862.6,1862.5,27.7966821]
[1746116917912,6.30711985,1862.6,1862.5,27.7966821]
[1746116920107,11.30711985,1862.6,1862.5,26.6718121]
[1746116920711,1.07368,1862.1,1862.0,6.0149]
[1746116922009,1.07368,1862.1,1862.0,3.58]
[1746116922208,1.07379,1861.9,1861.8,1.51485]
[1746116923503,1.6577,1862.0,1861.8,1.51485]
[1746116923713,2.73143,1862.0,1861.9,1.6965]
[1746116924304,1.07373,1862.0,1861.9,4.9043]
[1746116926015,2.81013,1862.0,1861.9,4.9043]
[1746116927306,1.07373,1862.0,1861.9,5.97809]
[1746116929518,1.07373,1862.0,1861.9,4.9043]
[1746116930315,1.07373,1862.0,1861.9,5.97809]
[1746116930611,1.07373,1862.0,1861.9,4.9043]
[1746116932114,1.07373,1862.0,1861.9,5.97809]
[1746116932413,1.07373,1862.0,1861.9,4.9043]
[1746116932609,1.07373,1862.0,1861.9,1.6965]
[1746116933010,1.07373,1862.0,1861.9,4.9043]
[1746116933615,1.07373,1862.0,1861.9,5.97809]
[1746116936922,2.77682,1862.1,1862.0,1.07373]
[1746116937115,2.77682,1862.1,1862.0,3.50573]
[1746116937415,1.07372,1862.1,1862.0,3.50573]
[1746116937625,1.07356,1862.3,1862.2,1.0736]
[1746116937917,1.07356,1862.3,1862.2,4.2814]
[1746116938416,1.07356,1862.3,1862.2,5.1198]
[1746116938918,1.07355,1862.4,1862.3,1.07351]
[1746116939111,2.68348,1862.6,1862.3,1.567]
[1746116939112,5.36708,1862.6,1862.3,1.567]
[1746116939312,1.07344,1862.5,1862.4,3.2078]
[1746116939514,2.80974,1862.5,1862.4,5.8701]
[1746116939817,1.07344,1862.5,1862.4,5.8701]
[1746116941214,1.07344,1862.6,1862.5,1.07341]
[1746116941420,1.07344,1862.6,1862.5,2.66221]
[1746116942418,1.07344,1862.6,1862.5,1.5888]
[1746116942620,1.07344,1862.6,1862.5,2.66224]
[1746116943314,1.07344,1862.6,1862.5,6.24424]
[1746116943521,1.07344,1862.6,1862.5,7.11244]
[1746116944922,2.80967,1862.7,1862.6,1.07339]
[1746116945124,2.80967,1862.7,1862.6,5.88089]
[1746116945717,1.07332,1862.8,1862.7,1.07327]
[1746116945924,1.07332,1862.8,1862.7,2.74637]
[1746116947217,2.77814,1862.9,1862.8,1.07327]
[1746116947419,1.07324,1862.9,1862.8,6.74047]
[1746116947926,1.07324,1862.9,1862.8,10.31947]
[1746116948118,3.57210635,1863.3,1862.8,9.2462]
[1746116948314,1.0731,1863.2,1863.1,1.07306]
[1746116948519,2.7072,1863.2,1863.1,1.6488]
[1746116948927,2.7072,1863.2,1863.1,2.7219]
[1746116949225,2.7072,1863.2,1863.1,1.6488]
[1746116949524,1.0731,1863.1,1863.0,4.28091]
[1746116949725,2.7072,1863.1,1863.0,3.2078]
[1746116949926,2.7072,1863.1,1863.0,4.28096]
[1746116950926,2.7072,1863.1,1863.0,3.2078]
[1746116954126,1.6341,1863.1,1862.8,10.29743]
[1746116954323,1.07344,1862.5,1862.4,3.2078]
[1746116954519,1.0735,1862.4,1862.3,3.578]
[1746116954718,1.916,1862.4,1862.3,3.578]
[1746116955124,0.8425,1862.4,1862.1,0.7846]
[1746116955322,1.07362,1862.2,1862.1,0.7846]
[1746116957228,1.07362,1862.2,1862.1,1.85828]
[1746116957430,1.07362,1862.2,1862.1,3.45168]
[1746116957931,1.07368,1862.1,1862.0,4.2815]
[1746116958229,1.07368,1862.1,1862.0,6.7344]
[1746116958430,2.78066,1862.2,1862.1,1.07368]
[1746116958622,2.78066,1862.2,1862.1,1.586]
[1746116959831,2.78066,1862.2,1862.1,2.65968]
[1746116960224,1.07366,1862.2,1862.1,2.65968]
[1746116961430,1.07347,1862.5,1862.4,1.07343]
[1746116961632,1.07347,1862.5,1862.4,7.86023]
[1746116961832,1.07344,1862.6,1862.5,1.07342]
[1746116962033,1.07344,1862.6,1862.5,3.54002]
[1746116962532,2.76307,1862.7,1862.6,1.07339]
[1746116962735,2.76307,1862.7,1862.6,5.91659]
[1746116964937,4.64541635,1862.8,1862.7,1.07333]
[1746116965138,3.57210635,1862.8,1862.7,6.32013]
[1746116965338,3.57210635,1862.8,1862.7,7.14093]
[1746116965836,4.64537635,1862.8,1862.7,7.14093]
[1746116966640,1.07327,1862.8,1862.7,7.14093]
[1746116966833,2.76256,1862.9,1862.8,1.07327]
[1746116967038,2.76256,1862.9,1862.8,4.28107]
[1746116967246,1.6893,1862.9,1862.8,4.28107]
[1746116967448,2.76251,1862.9,1862.8,6.01817]
[1746116967650,1.6893,1862.9,1862.8,6.01817]
[1746116967850,2.73324,1863.1,1863.0,1.07316]
[1746116968041,2.73324,1863.1,1863.0,4.28096]
[1746116968350,2.73324,1863.1,1863.0,7.85996]
[1746116968649,2.73324,1863.1,1863.0,9.59706]
[1746116969851,2.73324,1863.1,1863.0,7.85996]
[1746116975556,2.73324,1863.1,1863.0,9.42526]
[1746116975854,1.0731,1863.2,1863.1,1.07306]
[1746116976055,2.6923,1863.2,1863.1,2.78866]
[1746116976558,2.6923,1863.2,1863.1,2.7887]
[1746116977457,1.6192,1863.2,1863.1,2.7887]
[1746116977658,2.69224,1863.2,1863.1,3.6022]